[Event "Late-Titled-Tuesday-Blitz-May-07-2024"]
[Site "Chess.com"]
[Date "2024.05.07"]
[Round "2"]
[White "picturesquecheck"]
[Black "nochewycandy"]
[Result "1-0"]
[WhiteElo "2447"]
[BlackElo "2789"]
[TimeControl "180+1"]
[EndTime "14:18:32 PDT"]
[Termination "picturesquecheck won by resignation"]

1. e4 {[%clk 0:03:00.9]} 1... g6 {[%clk 0:02:55.6]} 2. d4 {[%clk 0:02:58.5]}
2... Bg7 {[%clk 0:02:56.5]} 3. Nc3 {[%clk 0:02:55.1]} 3... d6 {[%clk 0:02:56.7]}
4. Be3 {[%clk 0:02:50.2]} 4... a6 {[%clk 0:02:56.6]} 5. f3 {[%clk 0:02:50.3]}
5... b5 {[%clk 0:02:56.9]} 6. Qd2 {[%clk 0:02:50.7]} 6... Bb7 {[%clk 0:02:54.4]}
7. O-O-O {[%clk 0:02:50.2]} 7... Nd7 {[%clk 0:02:54.6]} 8. Kb1 {[%clk
0:02:50.5]} 8... Rc8 {[%clk 0:02:54.1]} 9. h4 {[%clk 0:02:48.8]} 9... h6 {[%clk
0:02:54]} 10. g4 {[%clk 0:02:47.9]} 10... c5 {[%clk 0:02:53.8]} 11. Nd5 {[%clk
0:02:46.3]} 11... Bxd5 {[%clk 0:02:51.5]} 12. exd5 {[%clk 0:02:44.4]} 12... c4
{[%clk 0:02:51.6]} 13. c3 {[%clk 0:02:42.9]} 13... Ngf6 {[%clk 0:02:51.4]} 14.
Nh3 {[%clk 0:02:29.8]} 14... Nxd5 {[%clk 0:02:50.9]} 15. Nf4 {[%clk 0:02:27.1]}
15... N7b6 {[%clk 0:02:45.7]} 16. Bg2 {[%clk 0:02:22.6]} 16... b4 {[%clk
0:02:43.5]} 17. Nxd5 {[%clk 0:02:18.1]} 17... Nxd5 {[%clk 0:02:44.4]} 18. Ka1
{[%clk 0:02:17.6]} 18... Qa5 {[%clk 0:02:41.5]} 19. Rc1 {[%clk 0:02:08.3]} 19...
bxc3 {[%clk 0:02:02.9]} 20. bxc3 {[%clk 0:02:06.8]} 20... Rb8 {[%clk 0:01:58.3]}
21. f4 {[%clk 0:02:01.5]} 21... Nxe3 {[%clk 0:01:54.3]} 22. Qxe3 {[%clk
0:02:02]} 22... O-O {[%clk 0:01:53.8]} 23. h5 {[%clk 0:01:56.8]} 23... Rb3
{[%clk 0:01:12.4]} 24. hxg6 {[%clk 0:01:46.6]} 24... Rfb8 {[%clk 0:01:11.8]} 25.
gxf7+ {[%clk 0:01:28.7]} 25... Kf8 {[%clk 0:01:11.8]} 26. Rhe1 {[%clk
0:01:24.2]} 26... Bf6 {[%clk 0:01:11.7]} 27. Re2 {[%clk 0:00:58]} 27... Qa3
{[%clk 0:00:49.4]} 28. Qd2 {[%clk 0:00:19.7]} 28... R3b5 {[%clk 0:00:10.7]} 29.
Rh1 {[%clk 0:00:13.8]} 29... Rb3 {[%clk 0:00:05.8]} 30. g5 {[%clk 0:00:09.9]}
30... Rxc3 {[%clk 0:00:04.3]} 31. gxf6 {[%clk 0:00:07.3]} 31... exf6 {[%clk
0:00:05.2]} 32. Re8+ {[%clk 0:00:06.3]} 32... Rxe8 {[%clk 0:00:04.2]} 33.
fxe8=Q+ {[%clk 0:00:07.2]} 33... Kxe8 {[%clk 0:00:05.1]} 34. Bc6+ {[%clk
0:00:07]} 34... Kd8 {[%clk 0:00:05.4]} 35. Be4 {[%clk 0:00:04.6]} 35... Re3
{[%clk 0:00:03.6]} 36. Bb1 {[%clk 0:00:02.9]} 36... c3 {[%clk 0:00:02]} 37. Qc2
{[%clk 0:00:03.3]} 37... Rd3 {[%clk 0:00:01.4]} 38. Rh2 {[%clk 0:00:01.3]} 38...
Rxd4 {[%clk 0:00:00.7]} 39. Rh3 {[%clk 0:00:00.6]} 39... Rb4 {[%clk 0:00:01.6]}
40. Rxc3 {[%clk 0:00:00.3]} 40... Qa5 {[%clk 0:00:01.6]} 41. Rc8+ {[%clk
0:00:00.4]} 41... Ke7 {[%clk 0:00:02.5]} 42. Rc7+ {[%clk 0:00:00.5]} 42... Ke6
{[%clk 0:00:03.4]} 43. Rc6 {[%clk 0:00:00.6]} 43... Kd5 {[%clk 0:00:04.3]} 44.
Rc3 {[%clk 0:00:00.1]} 44... Rb5 {[%clk 0:00:04.4]} 45. Qd3+ {[%clk 0:00:00.9]}
45... Ke6 {[%clk 0:00:05.2]} 46. Rb3 {[%clk 0:00:00.9]} 46... Kd7 {[%clk
0:00:06.1]} 47. Rxb5 {[%clk 0:00:00.7]} 47... axb5 {[%clk 0:00:07]} 48. Qb3
{[%clk 0:00:00.7]} 48... Qb6 {[%clk 0:00:07]} 49. f5 {[%clk 0:00:00.6]} 49...
Qd4+ {[%clk 0:00:07.5]} 50. Qb2 {[%clk 0:00:01.5]} 50... Qc5 {[%clk 0:00:08.1]}
51. Qxf6 {[%clk 0:00:01.4]} 51... Kc6 {[%clk 0:00:09]} 52. Qb2 {[%clk
0:00:01.4]} 52... h5 {[%clk 0:00:09.2]} 53. Qc2 {[%clk 0:00:02.3]} 53... h4
{[%clk 0:00:10.1]} 54. Qxc5+ {[%clk 0:00:02.1]} 54... Kxc5 {[%clk 0:00:11]} 55.
f6 {[%clk 0:00:02.7]} 55... h3 {[%clk 0:00:11.7]} 56. f7 {[%clk 0:00:03.3]}
56... d5 {[%clk 0:00:11.3]} 57. f8=Q+ {[%clk 0:00:02.7]} 57... Kd4 {[%clk
0:00:11.9]} 58. Qh6 {[%clk 0:00:03.4]} 58... h2 {[%clk 0:00:12.4]} 59. Qxh2
{[%clk 0:00:03.8]} 59... Kc4 {[%clk 0:00:13.1]} 60. Qb2 {[%clk 0:00:04.2]} 60...
b4 {[%clk 0:00:13.5]} 61. Qc2+ {[%clk 0:00:05.1]} 61... Kb5 {[%clk 0:00:14]} 62.
Qb3 {[%clk 0:00:05.7]} 62... d4 {[%clk 0:00:14.4]} 63. Bd3+ {[%clk 0:00:06.5]}
63... Kc5 {[%clk 0:00:15.1]} 64. Qc3+ {[%clk 0:00:07]} 64... Kd6 {[%clk
0:00:16]} 65. Qc4 {[%clk 0:00:07.3]} 65... Ke5 {[%clk 0:00:15.4]} 66. Qxb4
{[%clk 0:00:07.8]} 1-0

[Event "Late-Titled-Tuesday-Blitz-May-07-2024"]
[Site "Chess.com"]
[Date "2024.05.07"]
[Round "2"]
[White "eljanov"]
[Black "KingCyber19"]
[Result "1-0"]
[WhiteElo "2871"]
[BlackElo "2590"]
[TimeControl "180+1"]
[EndTime "14:18:35 PDT"]
[Termination "eljanov won by resignation"]

1. d4 {[%clk 0:03:00.9]} 1... d5 {[%clk 0:02:59.5]} 2. Bf4 {[%clk 0:02:59.6]}
2... Nf6 {[%clk 0:02:59.5]} 3. e3 {[%clk 0:02:59.8]} 3... e6 {[%clk 0:02:57.5]}
4. Nf3 {[%clk 0:02:58.9]} 4... Bd6 {[%clk 0:02:56.6]} 5. Nbd2 {[%clk 0:02:59.5]}
5... c5 {[%clk 0:02:53.7]} 6. dxc5 {[%clk 0:02:53.1]} 6... Bxf4 {[%clk
0:02:53.5]} 7. exf4 {[%clk 0:02:53.1]} 7... Qc7 {[%clk 0:02:54.1]} 8. g3 {[%clk
0:02:52.2]} 8... Qxc5 {[%clk 0:02:54.1]} 9. c3 {[%clk 0:02:50.3]} 9... Nc6
{[%clk 0:02:52.1]} 10. Bd3 {[%clk 0:02:50.4]} 10... Bd7 {[%clk 0:02:49.1]} 11.
O-O {[%clk 0:02:49.7]} 11... O-O {[%clk 0:02:47.1]} 12. Qe2 {[%clk 0:02:49.1]}
12... Rae8 {[%clk 0:02:39.4]} 13. Rfe1 {[%clk 0:02:46.6]} 13... Qb6 {[%clk
0:02:30.6]} 14. Rab1 {[%clk 0:02:39]} 14... a6 {[%clk 0:02:26.2]} 15. Ne5 {[%clk
0:02:37.1]} 15... Bc8 {[%clk 0:02:25.3]} 16. Ndf3 {[%clk 0:02:35.1]} 16... Nd7
{[%clk 0:02:24.3]} 17. h4 {[%clk 0:02:15.6]} 17... f6 {[%clk 0:01:57.6]} 18.
Nxd7 {[%clk 0:02:10.2]} 18... Bxd7 {[%clk 0:01:57.5]} 19. Qc2 {[%clk 0:02:10.9]}
19... h6 {[%clk 0:01:34]} 20. Bg6 {[%clk 0:01:57.6]} 20... Re7 {[%clk
0:01:33.1]} 21. Rbd1 {[%clk 0:01:58.3]} 21... Be8 {[%clk 0:01:08.1]} 22. Re2
{[%clk 0:01:50.6]} 22... Bxg6 {[%clk 0:00:54.7]} 23. Qxg6 {[%clk 0:01:51.5]}
23... Rfe8 {[%clk 0:00:37.5]} 24. Red2 {[%clk 0:01:41]} 24... Rf7 {[%clk
0:00:30.1]} 25. Qg4 {[%clk 0:01:26.6]} 25... Ne7 {[%clk 0:00:27.6]} 26. Nd4
{[%clk 0:01:23.5]} 26... e5 {[%clk 0:00:24.9]} 27. Nf5 {[%clk 0:01:22.3]} 27...
Nxf5 {[%clk 0:00:18.1]} 28. Qxf5 {[%clk 0:01:23.2]} 28... d4 {[%clk 0:00:16.5]}
29. cxd4 {[%clk 0:01:23.1]} 29... exd4 {[%clk 0:00:17.4]} 30. Qd5 {[%clk
0:01:20.8]} 30... Rd8 {[%clk 0:00:16.4]} 31. Qc4 {[%clk 0:01:19.1]} 31... Qc7
{[%clk 0:00:07.6]} 32. Qb3 {[%clk 0:01:10.7]} 32... Kh8 {[%clk 0:00:06.7]} 33.
Rxd4 {[%clk 0:01:10.3]} 33... Rxd4 {[%clk 0:00:07.6]} 34. Rxd4 {[%clk
0:01:10.8]} 34... Rd7 {[%clk 0:00:08.3]} 35. Re4 {[%clk 0:01:02.3]} 35... Rd8
{[%clk 0:00:06.9]} 36. Kg2 {[%clk 0:00:51.2]} 36... Qc6 {[%clk 0:00:06.9]} 37.
Qf3 {[%clk 0:00:50.2]} 37... Rd2 {[%clk 0:00:05.2]} 38. Rb4 {[%clk 0:00:47.6]}
38... Qxf3+ {[%clk 0:00:02.8]} 39. Kxf3 {[%clk 0:00:47.9]} 39... Rd7 {[%clk
0:00:03.7]} 40. a4 {[%clk 0:00:46.1]} 40... Kg8 {[%clk 0:00:04.3]} 41. h5 {[%clk
0:00:46.2]} 41... Kf7 {[%clk 0:00:05.2]} 42. Rb6 {[%clk 0:00:45.9]} 42... Rc7
{[%clk 0:00:05.5]} 43. Kg4 {[%clk 0:00:45.5]} 43... Ke7 {[%clk 0:00:03.9]} 44.
b4 {[%clk 0:00:44.2]} 44... Kf7 {[%clk 0:00:04.1]} 45. Kf5 {[%clk 0:00:43]}
45... Rd7 {[%clk 0:00:04.1]} 46. Ke4 {[%clk 0:00:42.6]} 46... Ke7 {[%clk
0:00:04.1]} 47. g4 {[%clk 0:00:42.5]} 47... Ke8 {[%clk 0:00:04.5]} 48. f3 {[%clk
0:00:37.9]} 48... Kf7 {[%clk 0:00:03.6]} 49. b5 {[%clk 0:00:35.6]} 49... a5
{[%clk 0:00:03.5]} 50. f5 {[%clk 0:00:30.4]} 50... Kf8 {[%clk 0:00:03.5]} 51. f4
{[%clk 0:00:30.2]} 51... Kf7 {[%clk 0:00:04.1]} 52. Ke3 {[%clk 0:00:28.3]} 52...
Kf8 {[%clk 0:00:04.1]} 53. Kf3 {[%clk 0:00:27.3]} 53... Kf7 {[%clk 0:00:04.6]}
54. g5 {[%clk 0:00:27.7]} 54... hxg5 {[%clk 0:00:04.7]} 55. fxg5 {[%clk
0:00:27.7]} 55... fxg5 {[%clk 0:00:05.6]} 56. Kg4 {[%clk 0:00:27.1]} 56... Kf8
{[%clk 0:00:05.4]} 57. Kxg5 {[%clk 0:00:27.3]} 57... Kf7 {[%clk 0:00:06.3]} 58.
h6 {[%clk 0:00:24.1]} 58... gxh6+ {[%clk 0:00:06.4]} 59. Rxh6 {[%clk 0:00:24.2]}
59... Rd4 {[%clk 0:00:04.4]} 60. Rh7+ {[%clk 0:00:24.4]} 60... Ke8 {[%clk
0:00:04.9]} 61. Rxb7 {[%clk 0:00:24.1]} 61... Rxa4 {[%clk 0:00:05.6]} 62. Ra7
{[%clk 0:00:24.4]} 62... Ra1 {[%clk 0:00:04.2]} 63. b6 {[%clk 0:00:24.8]} 63...
a4 {[%clk 0:00:03.3]} 64. Ra8+ {[%clk 0:00:23.7]} 64... Kd7 {[%clk 0:00:03.3]}
65. b7 {[%clk 0:00:24.2]} 1-0

[Event "Late-Titled-Tuesday-Blitz-May-07-2024"]
[Site "Chess.com"]
[Date "2024.05.07"]
[Round "2"]
[White "Vazabanga"]
[Black "stefy02"]
[Result "0-1"]
[WhiteElo "2681"]
[BlackElo "2438"]
[TimeControl "180+1"]
[EndTime "14:18:37 PDT"]
[Termination "stefy02 won by checkmate"]

1. d4 {[%clk 0:02:58.2]} 1... Nf6 {[%clk 0:02:59.4]} 2. c4 {[%clk 0:02:58.7]}
2... e6 {[%clk 0:02:55.7]} 3. g3 {[%clk 0:02:58.8]} 3... Bb4+ {[%clk 0:02:55.6]}
4. Bd2 {[%clk 0:02:58.6]} 4... a5 {[%clk 0:02:55.8]} 5. Nf3 {[%clk 0:02:58.4]}
5... b6 {[%clk 0:02:55.7]} 6. Bg2 {[%clk 0:02:58.9]} 6... Bb7 {[%clk 0:02:56]}
7. O-O {[%clk 0:02:59.4]} 7... O-O {[%clk 0:02:56.4]} 8. Nc3 {[%clk 0:02:58.9]}
8... d6 {[%clk 0:02:56.3]} 9. Re1 {[%clk 0:02:57.3]} 9... Nbd7 {[%clk
0:02:55.9]} 10. d5 {[%clk 0:02:50.2]} 10... Bxc3 {[%clk 0:02:46.1]} 11. Bxc3
{[%clk 0:02:50.1]} 11... Nc5 {[%clk 0:02:46.8]} 12. Nd4 {[%clk 0:02:42.2]} 12...
e5 {[%clk 0:02:33.7]} 13. Nc6 {[%clk 0:02:37]} 13... Bxc6 {[%clk 0:02:32.4]} 14.
dxc6 {[%clk 0:02:37.9]} 14... Nfe4 {[%clk 0:02:30.7]} 15. Qc2 {[%clk 0:02:33.8]}
15... f5 {[%clk 0:02:30.9]} 16. b4 {[%clk 0:02:06.3]} 16... axb4 {[%clk
0:02:27.6]} 17. Bxb4 {[%clk 0:02:06.4]} 17... Qe8 {[%clk 0:02:27.9]} 18. Bxc5
{[%clk 0:02:06.5]} 18... Nxc5 {[%clk 0:02:26.6]} 19. Bd5+ {[%clk 0:02:06.4]}
19... Kh8 {[%clk 0:02:26.7]} 20. Reb1 {[%clk 0:01:49.3]} 20... e4 {[%clk
0:02:26]} 21. a4 {[%clk 0:01:28.7]} 21... Qe5 {[%clk 0:02:25.3]} 22. Ra3 {[%clk
0:01:22.6]} 22... f4 {[%clk 0:02:25]} 23. e3 {[%clk 0:01:09.4]} 23... f3 {[%clk
0:02:16.3]} 24. Rb5 {[%clk 0:01:02.8]} 24... Qf5 {[%clk 0:02:03.4]} 25. Qd1
{[%clk 0:00:55.3]} 25... Rxa4 {[%clk 0:01:25.2]} 26. Rxa4 {[%clk 0:00:51.9]}
26... Nxa4 {[%clk 0:01:25.5]} 27. Bxe4 {[%clk 0:00:31.1]} 27... Qh3 {[%clk
0:01:06.6]} 28. Qf1 {[%clk 0:00:28.8]} 28... Qxf1+ {[%clk 0:01:04.6]} 29. Kxf1
{[%clk 0:00:29.7]} 29... Nc3 {[%clk 0:01:05]} 30. Bd5 {[%clk 0:00:25.8]} 30...
Nxb5 {[%clk 0:01:04.5]} 31. cxb5 {[%clk 0:00:26.7]} 31... Ra8 {[%clk 0:01:04.3]}
32. Bxf3 {[%clk 0:00:26.2]} 32... Ra1+ {[%clk 0:01:04.5]} 33. Kg2 {[%clk
0:00:25.7]} 33... Ra2 {[%clk 0:01:04.8]} 34. Be4 {[%clk 0:00:17.9]} 34... Ra3
{[%clk 0:01:00]} 35. Bd5 {[%clk 0:00:17.3]} 35... Ra4 {[%clk 0:00:56.9]} 36. Bf3
{[%clk 0:00:16.7]} 36... Kg8 {[%clk 0:00:54.9]} 37. Be2 {[%clk 0:00:15.7]} 37...
Kf7 {[%clk 0:00:54.1]} 38. f4 {[%clk 0:00:14.1]} 38... Ke6 {[%clk 0:00:53.3]}
39. Kf3 {[%clk 0:00:14.4]} 39... Kd5 {[%clk 0:00:52.4]} 40. Bd3 {[%clk
0:00:14.6]} 40... Kc5 {[%clk 0:00:51.6]} 41. g4 {[%clk 0:00:09.8]} 41... d5
{[%clk 0:00:49.3]} 42. h4 {[%clk 0:00:09.7]} 42... Ra3 {[%clk 0:00:44]} 43. Ke2
{[%clk 0:00:09.6]} 43... Rxd3 {[%clk 0:00:30.2]} 44. Kxd3 {[%clk 0:00:09.3]}
44... Kxb5 {[%clk 0:00:30.9]} 45. Kd4 {[%clk 0:00:02.5]} 45... Kxc6 {[%clk
0:00:31.2]} 46. Ke5 {[%clk 0:00:02.6]} 46... b5 {[%clk 0:00:30.9]} 47. f5 {[%clk
0:00:03.1]} 47... b4 {[%clk 0:00:30.7]} 48. Kd4 {[%clk 0:00:03.5]} 48... Kd6
{[%clk 0:00:29.9]} 49. g5 {[%clk 0:00:01.7]} 49... c5+ {[%clk 0:00:29.8]} 50.
Kd3 {[%clk 0:00:02.2]} 50... Ke5 {[%clk 0:00:27.6]} 51. f6 {[%clk 0:00:01.2]}
51... gxf6 {[%clk 0:00:27.4]} 52. g6 {[%clk 0:00:02.1]} 52... hxg6 {[%clk
0:00:27.5]} 53. h5 {[%clk 0:00:02.8]} 53... gxh5 {[%clk 0:00:27.7]} 54. Kc2
{[%clk 0:00:02.5]} 54... h4 {[%clk 0:00:28.3]} 55. Kb3 {[%clk 0:00:03.4]} 55...
h3 {[%clk 0:00:28.3]} 56. Ka4 {[%clk 0:00:04.3]} 56... h2 {[%clk 0:00:28.4]} 57.
e4 {[%clk 0:00:05.2]} 57... h1=Q {[%clk 0:00:27.4]} 58. Kb5 {[%clk 0:00:05.9]}
58... b3 {[%clk 0:00:26.2]} 59. exd5 {[%clk 0:00:05.3]} 59... b2 {[%clk
0:00:26.7]} 60. d6 {[%clk 0:00:04.4]} 60... b1=Q+ {[%clk 0:00:26.6]} 61. Ka6
{[%clk 0:00:04.9]} 61... Qhb7+ {[%clk 0:00:26]} 62. Ka5 {[%clk 0:00:04.7]} 62...
Q1b5# {[%clk 0:00:26.5]} 0-1

[Event "Late-Titled-Tuesday-Blitz-May-07-2024"]
[Site "Chess.com"]
[Date "2024.05.07"]
[Round "2"]
[White "ozates"]
[Black "vugarrasulov"]
[Result "1-0"]
[WhiteElo "2656"]
[BlackElo "2978"]
[TimeControl "180+1"]
[EndTime "14:18:40 PDT"]
[Termination "ozates won by resignation"]

1. e4 {[%clk 0:03:00.9]} 1... e5 {[%clk 0:02:59.8]} 2. Nf3 {[%clk 0:03:01]} 2...
Nc6 {[%clk 0:03:00.4]} 3. Bc4 {[%clk 0:03:01.6]} 3... Nf6 {[%clk 0:03:00.1]} 4.
d3 {[%clk 0:03:01.9]} 4... Be7 {[%clk 0:02:58.8]} 5. O-O {[%clk 0:03:01.8]} 5...
O-O {[%clk 0:02:59]} 6. a4 {[%clk 0:03:02.5]} 6... d6 {[%clk 0:02:57.4]} 7. a5
{[%clk 0:03:02]} 7... Be6 {[%clk 0:02:53]} 8. Nc3 {[%clk 0:02:58]} 8... a6
{[%clk 0:02:48.5]} 9. Bg5 {[%clk 0:02:40.3]} 9... Nd7 {[%clk 0:02:43.6]} 10.
Bxe7 {[%clk 0:02:39.4]} 10... Qxe7 {[%clk 0:02:44.5]} 11. Nd5 {[%clk 0:02:38.6]}
11... Qd8 {[%clk 0:02:44.4]} 12. c3 {[%clk 0:02:34.5]} 12... Kh8 {[%clk
0:02:41.7]} 13. h4 {[%clk 0:02:29.3]} 13... h6 {[%clk 0:02:38.4]} 14. Ne3 {[%clk
0:02:16.5]} 14... Bxc4 {[%clk 0:02:31.5]} 15. dxc4 {[%clk 0:02:16.8]} 15... Nc5
{[%clk 0:02:31]} 16. Qc2 {[%clk 0:02:16.8]} 16... Ne6 {[%clk 0:02:30.2]} 17. g3
{[%clk 0:02:16.5]} 17... Ne7 {[%clk 0:02:18.8]} 18. Rad1 {[%clk 0:02:12.7]}
18... Ng8 {[%clk 0:02:12.9]} 19. b4 {[%clk 0:02:11.6]} 19... Nf6 {[%clk
0:02:12.3]} 20. c5 {[%clk 0:02:10]} 20... Qb8 {[%clk 0:01:42.4]} 21. cxd6 {[%clk
0:02:04.5]} 21... cxd6 {[%clk 0:01:43.3]} 22. Nf5 {[%clk 0:01:59.9]} 22... Rd8
{[%clk 0:01:43.1]} 23. Rd2 {[%clk 0:01:55]} 23... Qc7 {[%clk 0:01:38.8]} 24.
Rfd1 {[%clk 0:01:54]} 24... Ne8 {[%clk 0:01:39.4]} 25. Ne3 {[%clk 0:01:36.7]}
25... Nf6 {[%clk 0:01:33.1]} 26. Nf5 {[%clk 0:01:36.6]} 26... Ne8 {[%clk
0:01:21.3]} 27. Ne3 {[%clk 0:01:37]} 27... b5 {[%clk 0:01:12.5]} 28. Nd5 {[%clk
0:01:31.6]} 28... Qc6 {[%clk 0:01:12]} 29. Nh2 {[%clk 0:01:19.2]} 29... Ra7
{[%clk 0:01:02.1]} 30. Ng4 {[%clk 0:01:18]} 30... Rc8 {[%clk 0:01:02.3]} 31.
Nge3 {[%clk 0:01:15.5]} 31... N6c7 {[%clk 0:00:38.8]} 32. Ne7 {[%clk 0:01:12.5]}
32... Qd7 {[%clk 0:00:37.7]} 33. Nxc8 {[%clk 0:01:12.6]} 33... Qxc8 {[%clk
0:00:38.6]} 34. Nf5 {[%clk 0:01:09.1]} 34... Ne6 {[%clk 0:00:31.4]} 35. Nxd6
{[%clk 0:01:09.3]} 35... Nxd6 {[%clk 0:00:32.3]} 36. Rxd6 {[%clk 0:01:09.4]}
36... Rc7 {[%clk 0:00:33.2]} 37. R6d3 {[%clk 0:00:53.9]} 37... Rc4 {[%clk
0:00:32.5]} 38. Re3 {[%clk 0:00:36.5]} 38... Rxb4 {[%clk 0:00:32.1]} 39. Qe2
{[%clk 0:00:30.3]} 39... Rc4 {[%clk 0:00:30.8]} 40. Qh5 {[%clk 0:00:28.4]} 40...
Kg8 {[%clk 0:00:29]} 41. Qxe5 {[%clk 0:00:28.2]} 41... Rc5 {[%clk 0:00:27.3]}
42. Qd6 {[%clk 0:00:27.1]} 42... Rc6 {[%clk 0:00:27]} 43. Qd7 {[%clk 0:00:24.3]}
43... Rxc3 {[%clk 0:00:26.4]} 44. Qxc8+ {[%clk 0:00:22.5]} 44... Rxc8 {[%clk
0:00:26.3]} 45. Rd6 {[%clk 0:00:23.2]} 45... Ra8 {[%clk 0:00:22]} 46. Rc3 {[%clk
0:00:20.7]} 46... Nd8 {[%clk 0:00:13.9]} 47. Rc7 {[%clk 0:00:19.3]} 47... Kf8
{[%clk 0:00:14.2]} 48. f4 {[%clk 0:00:18.8]} 48... Ke8 {[%clk 0:00:12.9]} 49. f5
{[%clk 0:00:18.2]} 49... h5 {[%clk 0:00:12.6]} 50. e5 {[%clk 0:00:18.1]} 50...
Rb8 {[%clk 0:00:08.8]} 51. Rb6 {[%clk 0:00:18.2]} 51... Ra8 {[%clk 0:00:09.1]}
52. e6 {[%clk 0:00:18.4]} 52... fxe6 {[%clk 0:00:08.6]} 53. fxe6 {[%clk
0:00:17.6]} 53... b4 {[%clk 0:00:08.2]} 54. Rxg7 {[%clk 0:00:17.3]} 54... b3
{[%clk 0:00:08.2]} 55. Rxb3 {[%clk 0:00:16.7]} 55... Nxe6 {[%clk 0:00:08.4]} 56.
Rg8+ {[%clk 0:00:17.2]} 56... Nf8 {[%clk 0:00:09.2]} 57. Rf3 {[%clk 0:00:17.4]}
57... Ke7 {[%clk 0:00:09.7]} 58. Rfxf8 {[%clk 0:00:18]} 58... Rxf8 {[%clk
0:00:10.4]} 59. Rxf8 {[%clk 0:00:18.9]} 59... Kxf8 {[%clk 0:00:11.3]} 60. Kf2
{[%clk 0:00:18.6]} 60... Ke7 {[%clk 0:00:11]} 61. Ke3 {[%clk 0:00:15.5]} 61...
Kd6 {[%clk 0:00:08.3]} 62. Kf4 {[%clk 0:00:15.8]} 62... Kc5 {[%clk 0:00:07.6]}
63. g4 {[%clk 0:00:15.9]} 63... Kb5 {[%clk 0:00:08.5]} 64. gxh5 {[%clk
0:00:15.8]} 64... Kxa5 {[%clk 0:00:09.4]} 65. h6 {[%clk 0:00:16.7]} 65... Kb6
{[%clk 0:00:08.4]} 66. h7 {[%clk 0:00:17.6]} 1-0

[Event "Late-Titled-Tuesday-Blitz-May-07-2024"]
[Site "Chess.com"]
[Date "2024.05.07"]
[Round "2"]
[White "sergiochess83"]
[Black "manitodeplomo"]
[Result "1-0"]
[WhiteElo "2883"]
[BlackElo "2602"]
[TimeControl "180+1"]
[EndTime "14:18:40 PDT"]
[Termination "sergiochess83 won by resignation"]

1. d4 {[%clk 0:02:54.1]} 1... c5 {[%clk 0:02:59.7]} 2. d5 {[%clk 0:02:50.8]}
2... g6 {[%clk 0:02:58]} 3. e4 {[%clk 0:02:44.6]} 3... Bg7 {[%clk 0:02:58.3]} 4.
Nc3 {[%clk 0:02:44.7]} 4... d6 {[%clk 0:02:58.4]} 5. Bb5+ {[%clk 0:02:44.1]}
5... Bd7 {[%clk 0:02:58.2]} 6. a4 {[%clk 0:02:44.8]} 6... Bxb5 {[%clk
0:02:58.1]} 7. axb5 {[%clk 0:02:44.2]} 7... Nd7 {[%clk 0:02:58.7]} 8. Nf3 {[%clk
0:02:43.7]} 8... Ngf6 {[%clk 0:02:59.6]} 9. O-O {[%clk 0:02:43.4]} 9... O-O
{[%clk 0:03:00.3]} 10. h3 {[%clk 0:02:42.3]} 10... Nb6 {[%clk 0:03:00.9]} 11.
Qe2 {[%clk 0:02:40.2]} 11... Ne8 {[%clk 0:03:01.4]} 12. Bd2 {[%clk 0:02:38.4]}
12... Nc7 {[%clk 0:03:02]} 13. Ra5 {[%clk 0:02:06.6]} 13... Qd7 {[%clk
0:02:38.8]} 14. Rfa1 {[%clk 0:02:05.4]} 14... a6 {[%clk 0:02:38.2]} 15. bxa6
{[%clk 0:01:57.5]} 15... bxa6 {[%clk 0:02:25.4]} 16. Rd1 {[%clk 0:01:49.7]}
16... f5 {[%clk 0:02:17.9]} 17. Be1 {[%clk 0:01:13.5]} 17... fxe4 {[%clk
0:02:01.7]} 18. Ng5 {[%clk 0:01:10.2]} 18... Bxc3 {[%clk 0:01:50.1]} 19. bxc3
{[%clk 0:01:10.1]} 19... Nbxd5 {[%clk 0:01:48.6]} 20. c4 {[%clk 0:01:09.1]}
20... Nf6 {[%clk 0:01:40.9]} 21. Rxc5 {[%clk 0:00:59.3]} 21... Ne6 {[%clk
0:01:34.9]} 22. Nxe6 {[%clk 0:00:52.6]} 22... Qxe6 {[%clk 0:01:35.8]} 23. Rc7
{[%clk 0:00:52.1]} 23... Rfc8 {[%clk 0:01:31.4]} 24. Rxc8+ {[%clk 0:00:45.6]}
24... Rxc8 {[%clk 0:01:31.2]} 25. Rd4 {[%clk 0:00:46.5]} 25... Rc6 {[%clk
0:00:53.7]} 26. Bc3 {[%clk 0:00:44.9]} 26... Qc8 {[%clk 0:00:52.1]} 27. g4
{[%clk 0:00:28.3]} 27... d5 {[%clk 0:00:39.9]} 28. g5 {[%clk 0:00:18.6]} 28...
Nh5 {[%clk 0:00:39.5]} 29. Bd2 {[%clk 0:00:18.8]} 29... Rxc4 {[%clk 0:00:22]}
30. Rxd5 {[%clk 0:00:19.3]} 30... Qc6 {[%clk 0:00:18.3]} 31. Rd8+ {[%clk
0:00:15.9]} 31... Kf7 {[%clk 0:00:18.4]} 32. Be3 {[%clk 0:00:12]} 32... Ng7
{[%clk 0:00:17.7]} 33. Rh8 {[%clk 0:00:07.7]} 33... Nf5 {[%clk 0:00:17.3]} 34.
Qd2 {[%clk 0:00:05.6]} 34... Nxe3 {[%clk 0:00:12.1]} 35. Qxe3 {[%clk 0:00:05.4]}
35... Rxc2 {[%clk 0:00:08.9]} 36. Qf4+ {[%clk 0:00:05.2]} 36... Ke6 {[%clk
0:00:09.1]} 37. Rxh7 {[%clk 0:00:05.3]} 37... Rc1+ {[%clk 0:00:04.4]} 38. Kh2
{[%clk 0:00:05.7]} 38... e3 {[%clk 0:00:04.9]} 39. Qxe3+ {[%clk 0:00:05.4]}
39... Kd5 {[%clk 0:00:01.5]} 40. Qd2+ {[%clk 0:00:04.7]} 40... Ke6 {[%clk
0:00:00.9]} 41. Qe2+ {[%clk 0:00:04.7]} 41... Kd5 {[%clk 0:00:01.5]} 42. Rxe7
{[%clk 0:00:04.6]} 42... Qd6+ {[%clk 0:00:01]} 43. Kg2 {[%clk 0:00:04.9]} 43...
Qf4 {[%clk 0:00:01.2]} 44. Qd3+ {[%clk 0:00:04.6]} 44... Kc6 {[%clk 0:00:01.3]}
45. Re4 {[%clk 0:00:04.9]} 45... Qxg5+ {[%clk 0:00:01.1]} 46. Rg4 {[%clk
0:00:05.8]} 46... Qd5+ {[%clk 0:00:01.5]} 47. Qxd5+ {[%clk 0:00:05.1]} 47...
Kxd5 {[%clk 0:00:02.4]} 48. Rxg6 {[%clk 0:00:05.7]} 48... Rc6 {[%clk 0:00:03.2]}
49. Rxc6 {[%clk 0:00:04.6]} 49... Kxc6 {[%clk 0:00:03.5]} 50. Kf1 {[%clk
0:00:05.5]} 50... a5 {[%clk 0:00:03.8]} 51. Ke1 {[%clk 0:00:06.4]} 51... Kb5
{[%clk 0:00:03.4]} 52. Kd2 {[%clk 0:00:06.8]} 52... Kc4 {[%clk 0:00:03.8]} 53.
Kc2 {[%clk 0:00:07.2]} 53... Kd4 {[%clk 0:00:04.5]} 54. h4 {[%clk 0:00:07.6]}
54... Ke4 {[%clk 0:00:04.9]} 55. h5 {[%clk 0:00:08.1]} 55... Kf5 {[%clk
0:00:05.8]} 56. f4 {[%clk 0:00:08.6]} 56... Kf6 {[%clk 0:00:05.6]} 57. Kb3
{[%clk 0:00:08.6]} 57... Kg7 {[%clk 0:00:05.5]} 58. f5 {[%clk 0:00:09.1]} 58...
Kf6 {[%clk 0:00:05.4]} 59. h6 {[%clk 0:00:09.2]} 59... Kf7 {[%clk 0:00:04.7]}
60. Ka4 {[%clk 0:00:09.2]} 60... Kg8 {[%clk 0:00:05.2]} 61. f6 {[%clk
0:00:09.6]} 61... Kh7 {[%clk 0:00:05.6]} 62. f7 {[%clk 0:00:09.9]} 1-0